fUST/lending_fUST_20250626
["ID","MTS","AMOUNT","RATE_DAILY","PERIOD"]
[367587359,1750867847577,-908.2,0.00016986,2]
[367587361,1750867847587,-460.0,0.00016986,2]
[367587363,1750867847596,-460.0,0.00016986,2]
[367587365,1750867847605,-460.0,0.00016986,2]
[367587367,1750867847614,-460.0,0.00016986,2]
[367587369,1750867847624,-4668.02,0.00016986,2]
[367587371,1750867847634,-460.0,0.00016986,2]
[367587373,1750867847644,-1912.17,0.00016986,2]
[367587375,1750867847653,-1756.49,0.00016986,2]
[367587377,1750867847662,-460.0,0.00016986,2]
[367587379,1750867847672,-610.58,0.00016986,2]
[367587381,1750867847681,-460.0,0.00016986,2]
[367587383,1750867847692,-460.0,0.00016986,2]
[367587385,1750867847701,-460.0,0.00016986,2]
[367587386,1750867847711,-460.0,0.00016986,2]
[367587388,1750867847720,-482.29367445,0.00016986,2]
[367587390,1750867847729,-629.93,0.00016986,2]
[367587392,1750867847738,-460.0,0.00016986,2]
[367587394,1750867847747,-460.0,0.00016986,2]
[367587396,1750867847757,-1760.35,0.00016986,2]
[367587398,1750867847766,-293.0881946,0.00016986,2]
[367587400,1750867847775,-460.0,0.00016986,2]
[367587402,1750867847785,-460.0,0.00016986,2]
[367587404,1750867847794,-1564.69,0.00016986,2]
[367587406,1750867847803,-1886.61,0.00016986,2]
[367587408,1750867847813,-594.63,0.00016986,2]
[367587410,1750867847822,-460.0,0.00016986,2]
[367587412,1750867847832,-460.0,0.00016986,2]
[367587414,1750867847841,-593.22,0.00016986,2]
[367587416,1750867847851,-5417.69,0.00016986,2]
[367587419,1750867847871,-463.16571372,0.00016986,2]
[367587421,1750867847881,-460.0,0.00016986,2]
[367587423,1750867847896,-460.0,0.00016986,2]
[367587426,1750867847907,-561.17,0.00016986,2]
[367587428,1750867847916,-460.0,0.00016986,2]
[367587430,1750867847926,-531.47,0.00016986,2]
[367587432,1750867847936,-460.0,0.00016986,2]
[367587434,1750867847945,-460.0,0.00016986,2]
[367587436,1750867847955,-619.8,0.00016986,2]
[367587438,1750867847965,-460.0,0.00016986,2]
[367587439,1750867847975,-460.0,0.00016986,2]
[367587442,1750867847985,-590.0,0.00016986,2]
[367587443,1750867847995,-460.0,0.00016986,2]
[367587445,1750867848005,-460.0,0.00016986,2]
[367587448,1750867848015,-2506.56,0.00016986,2]
[367587450,1750867848025,-5374.08,0.00016986,2]
[367587451,1750867848035,-460.0,0.00016986,2]
[367587453,1750867848045,-859.04,0.00016986,2]
[367587456,1750867848055,-460.0,0.00016986,2]
[367587457,1750867848065,-460.0,0.00016986,2]
[367587459,1750867848076,-460.0,0.00016986,2]
[367587461,1750867848086,-839.14,0.00016986,2]
[367587463,1750867848096,-460.0,0.00016986,2]
[367587465,1750867848106,-736.19,0.00016986,2]
[367587467,1750867848115,-605.17,0.00016986,2]
[367587469,1750867848125,-460.0,0.00016986,2]
[367587471,1750867848134,-1527.49,0.00016986,2]
[367587473,1750867848144,-460.0,0.00016986,2]
[367587475,1750867848154,-472.76,0.00016986,2]
[367587477,1750867848164,-460.0,0.00016986,2]
[367587479,1750867848173,-516.41,0.00016986,2]
[367587481,1750867848183,-460.0,0.00016986,2]
[367587483,1750867848192,-460.0,0.00016986,2]
[367587485,1750867848202,-460.0,0.00016986,2]
[367587487,1750867848213,-460.0,0.00016986,2]
[367587489,1750867848223,-1612.98,0.00016986,2]
[367587491,1750867848233,-720.26,0.00016986,2]
[367587493,1750867848243,-460.0,0.00016986,2]
[367587495,1750867848253,-1000.0,0.00017,17]
[367587497,1750867848263,-151.0,0.00017,2]
[367587499,1750867848272,-706.5679833,0.00017,2]
[367587501,1750867848282,-7681.16278217,0.00017,2]
[367587503,1750867848292,-500.0,0.0001705,2]
[367587505,1750867848301,-2364.38197364,0.00017052,2]
[367587507,1750867848311,-195.03929553,0.00017056,2]
[367587509,1750867848321,-523.61903905,0.00017064,2]
[367587511,1750867848331,-458.91259767,0.00017064,2]
[367587513,1750867848342,-846.80634355,0.00017094,2]
[367587515,1750867848351,-160.0,0.00017094,2]
[367587517,1750867848361,-12558.06783089,0.00017094,2]
[367587519,1750867848371,-160.0,0.00017094,2]
[367587521,1750867848381,-213.69531788,0.00017094,2]
[367587522,1750867848391,-425.18553072,0.00017094,2]
[367587524,1750867848401,-160.0,0.00017094,2]
[367587526,1750867848411,-160.0,0.00017094,2]
[367587527,1750867848421,-160.0,0.00017094,2]
[367587528,1750867848430,-836.86812089,0.00017094,2]
[367587529,1750867848440,-160.0,0.00017094,2]
[367587530,1750867848450,-160.0,0.00017094,2]
[367587531,1750867848460,-524.21181985,0.00017094,2]
[367587532,1750867848470,-230.22714675,0.00017094,2]
[367587533,1750867848484,-500.0,0.000171,2]
[367587534,1750867848494,-500.0,0.000171,2]
[367587535,1750867848504,-500.0,0.000171,2]
[367587536,1750867848514,-500.0,0.00017105,2]
[367587537,1750867848524,-500.0,0.00017105,2]
[367587538,1750867848533,-500.0,0.00017105,2]
[367587539,1750867848544,-351.70149214,0.00017105,2]
[367587540,1750867848554,-500.0,0.00017105,2]
[367587541,1750867848564,-224.68595389,0.00017105,2]
[367587542,1750867848574,-500.0,0.00017105,2]
[367587543,1750867848583,-500.0,0.00017105,2]
[367587544,1750867848593,-500.0,0.00017105,2]
[367587545,1750867848603,-500.0,0.00017105,2]
[367587547,1750867848613,-500.0,0.00017105,2]
[367587549,1750867848622,-500.0,0.00017105,2]
[367587551,1750867848632,-614.18597854,0.00017105,2]
[367587553,1750867848642,-232.72454134,0.00017105,2]
[367587555,1750867848651,-7681.16278202,0.00017107,2]
[367587557,1750867848661,-500.0,0.00017112,2]
[367587559,1750867848671,-500.0,0.00017112,2]
[367587561,1750867848680,-500.0,0.00017112,2]
[367587563,1750867848690,-500.0,0.00017112,2]
[367587565,1750867848700,-500.0,0.00017112,2]
[367587567,1750867848710,-500.0,0.00017112,2]
[367587569,1750867848720,-207.4,0.00017125,2]
[367587571,1750867848730,-500.0,0.00017125,2]
[367587573,1750867848739,-151.0,0.00017125,2]
[367587575,1750867848749,-500.0,0.00017125,2]
[367587577,1750867848759,-500.0,0.00017125,2]
[367587579,1750867848769,-500.0,0.00017125,2]
[367587581,1750867848779,-151.0,0.00017125,2]
[367587583,1750867848788,-500.0,0.00017125,2]
[367587585,1750867848798,-5000.0,0.00017125,2]
[367587587,1750867848807,-151.0,0.00017125,2]
[367587589,1750867848817,-500.0,0.00017125,2]
[367587591,1750867848827,-291.5243871,0.00017125,2]
[367587593,1750867848836,-500.0,0.00017125,2]
[367587595,1750867848846,-500.0,0.00017125,2]
[367587597,1750867848858,-563.32945425,0.00017125,2]
[367587599,1750867848869,-3906.52055875,0.00017125,2]
[367587601,1750867848878,-500.0,0.00017125,2]
[367587603,1750867848890,-500.0,0.00017125,2]
[367587605,1750867848900,-500.0,0.00017125,2]
[367587607,1750867848910,-500.0,0.00017125,2]
[367587609,1750867848920,-500.0,0.00017125,2]
[367587611,1750867848931,-500.0,0.00017125,2]
[367587613,1750867848942,-500.0,0.00017125,2]
[367587615,1750867848951,-500.0,0.00017125,2]
[367587617,1750867848962,-182.3598853,0.00017125,2]
[367587619,1750867848972,-640.02915984,0.0001716,2]
[367587635,1750867849115,-364.3438983,0.0001716,2]
[367587637,1750867849124,-1729.76673026,0.00017241,2]
[367587639,1750867849134,-460.0,0.0001726,2]
[367587641,1750867849144,-460.0,0.0001726,2]
[367587643,1750867849153,-460.0,0.0001726,2]
[367587645,1750867849163,-460.0,0.0001726,2]
[367587646,1750867849172,-440.0,0.0001726,2]
[367587647,1750867849181,-460.0,0.0001726,2]
[367587648,1750867849190,-479.63,0.0001726,2]
[367587649,1750867849200,-460.0,0.0001726,2]
[367587650,1750867849210,-177.28556717,0.0001726,2]
[367587651,1750867849220,-531.11,0.0001726,2]
[367587652,1750867849229,-460.0,0.0001726,2]
[367587653,1750867849239,-581.7,0.0001726,2]
[367587654,1750867849248,-269.05564529,0.0001726,2]
[367587655,1750867849258,-460.0,0.0001726,2]
[367587656,1750867849268,-460.0,0.0001726,2]
[367587657,1750867849277,-460.0,0.0001726,2]
[367587658,1750867849286,-151.0,0.0001726,2]
[367587659,1750867849296,-426.18048495,0.0001726,2]
[367587660,1750867849305,-468.30236844,0.0001726,2]
[367587661,1750867849314,-151.0,0.0001726,2]
[367587662,1750867849324,-362.85596603,0.0001726,2]
[367587663,1750867849333,-308.14577533,0.0001726,2]
[367587664,1750867849343,-460.0,0.0001726,2]
[367587665,1750867849352,-151.0,0.0001726,2]
[367587666,1750867849362,-151.0,0.0001726,2]
[367587667,1750867849371,-460.0,0.0001726,2]
[367587668,1750867849381,-390.86821487,0.0001726,2]
[367587669,1750867849390,-460.0,0.0001726,2]
[367587670,1750867849400,-200.31254145,0.0001726,2]
[367587671,1750867849409,-151.0,0.0001726,2]
[367587672,1750867849419,-460.0,0.0001726,2]
[367587673,1750867849429,-646.25,0.0001726,2]
[367587674,1750867849438,-217.91297341,0.0001726,2]
[367587675,1750867849447,-462.64370593,0.0001726,2]
[367587676,1750867849457,-460.0,0.0001726,2]
[367587677,1750867849467,-460.0,0.0001726,2]
[367587678,1750867849476,-460.0,0.0001726,2]
[367587679,1750867849485,-460.0,0.0001726,2]
[367587680,1750867849494,-460.0,0.0001726,2]
[367587681,1750867849504,-482.90102481,0.0001726,2]
[367587682,1750867849513,-151.0,0.0001726,2]
[367587684,1750867849523,-533.6,0.0001726,2]
[367587686,1750867849532,-151.0,0.0001726,2]
[367587688,1750867849541,-460.0,0.0001726,2]
[367587690,1750867849551,-460.0,0.0001726,2]
[367587692,1750867849561,-460.0,0.0001726,2]
[367587694,1750867849570,-460.0,0.0001726,2]
[367587696,1750867849579,-151.0,0.0001726,2]
[367587698,1750867849588,-460.0,0.0001726,2]
[367587699,1750867849598,-460.0,0.0001726,2]
[367587700,1750867849606,-460.0,0.0001726,2]
[367587702,1750867849615,-151.0,0.0001726,2]
[367587704,1750867849624,-1114.41,0.0001726,2]
[367587706,1750867849634,-460.0,0.0001726,2]
[367587708,1750867849644,-460.0,0.0001726,2]
[367587710,1750867849654,-460.0,0.0001726,2]
[367587712,1750867849663,-460.0,0.0001726,2]
[367587714,1750867849673,-460.0,0.0001726,2]
[367587716,1750867849683,-460.0,0.0001726,2]
[367587718,1750867849692,-460.0,0.0001726,2]
[367587720,1750867849701,-344.24059989,0.0001726,2]
[367587722,1750867849711,-460.0,0.0001726,2]
[367587724,1750867849721,-460.0,0.0001726,2]
[367587726,1750867849730,-460.0,0.0001726,2]
[367587728,1750867849739,-1473.9,0.0001726,2]
[367587730,1750867849749,-253.11,0.0001726,2]
[367587732,1750867849759,-460.0,0.0001726,2]
[367587734,1750867849768,-460.0,0.0001726,2]
[367587736,1750867849779,-151.0,0.0001726,2]
[367587739,1750867849798,-463.8458609,0.0001726,2]
[367587741,1750867849808,-460.0,0.0001726,2]
[367587744,1750867849818,-1737.03,0.0001726,2]
[367587746,1750867849828,-460.0,0.0001726,2]
[367587748,1750867849838,-151.0,0.0001726,2]
[367587750,1750867849848,-151.0,0.0001726,2]
[367587752,1750867849857,-1010.74,0.0001726,2]
[367587754,1750867849867,-460.0,0.0001726,2]
[367587756,1750867849878,-460.0,0.0001726,2]
[367587758,1750867849888,-460.0,0.0001726,2]
[367587760,1750867849898,-460.0,0.0001726,2]
[367587762,1750867849908,-460.0,0.0001726,2]
[367587764,1750867849918,-460.0,0.0001726,2]
[367587766,1750867849928,-2667.9,0.0001726,2]
[367587768,1750867849938,-460.0,0.0001726,2]
[367587770,1750867849948,-460.0,0.0001726,2]
[367587772,1750867849959,-460.0,0.0001726,2]
[367587774,1750867849969,-195.63838358,0.0001726,2]
[367587776,1750867849979,-460.0,0.0001726,2]
[367587778,1750867849990,-623.7,0.0001726,2]
[367587780,1750867849999,-176.59429916,0.0001726,2]
[367587782,1750867850009,-460.0,0.0001726,2]
[367587784,1750867850019,-460.0,0.0001726,2]
[367587786,1750867850029,-460.0,0.0001726,2]
[367587788,1750867850040,-453.12734487,0.0001726,2]
[367587790,1750867850050,-460.0,0.0001726,2]
[367587793,1750867850060,-215.13,0.0001726,2]
[367587795,1750867850069,-151.0,0.0001726,2]
[367587797,1750867850079,-460.0,0.0001726,2]
[367587799,1750867850089,-460.0,0.0001726,2]
[367587801,1750867850098,-460.0,0.0001726,2]
[367587803,1750867850108,-460.0,0.0001726,2]
[367587805,1750867850118,-216.0169514,0.0001726,2]
[367587807,1750867850128,-561.6,0.0001726,2]
[367587809,1750867850137,-151.0,0.0001726,2]
[367587811,1750867850147,-541.14,0.0001726,2]
[367587813,1750867850158,-460.0,0.0001726,2]
[367587815,1750867850167,-460.0,0.0001726,2]
[367587817,1750867850176,-446.80107923,0.0001726,2]
[367587819,1750867850186,-151.0,0.0001726,2]
[367587821,1750867850196,-204.76,0.0001726,2]
[367587823,1750867850206,-264.67535378,0.0001726,2]
[367587825,1750867850216,-151.0,0.0001726,2]
[367587827,1750867850226,-151.0,0.0001726,2]
[367587829,1750867850236,-460.0,0.0001726,2]
[367587831,1750867850246,-460.0,0.0001726,2]
[367587833,1750867850255,-151.0,0.0001726,2]
[367587835,1750867850265,-768.63,0.0001726,2]
[367587837,1750867850276,-533.17,0.0001726,2]
[367587839,1750867850285,-460.0,0.0001726,2]
[367587841,1750867850294,-460.0,0.0001726,2]
[367587843,1750867850304,-460.0,0.0001726,2]
[367587845,1750867850313,-460.0,0.0001726,2]
[367587847,1750867850323,-460.0,0.0001726,2]
[367587849,1750867850332,-633.06,0.0001726,2]
[367587851,1750867850341,-460.0,0.0001726,2]
[367587854,1750867850351,-460.0,0.0001726,2]
[367587855,1750867850360,-446.94978684,0.0001726,2]
[367587857,1750867850369,-460.0,0.0001726,2]
[367587859,1750867850379,-460.0,0.0001726,2]
[367587861,1750867850389,-306.85112534,0.0001726,2]
[367587863,1750867850398,-460.0,0.0001726,2]
[367587865,1750867850409,-460.0,0.0001726,2]
[367587867,1750867850419,-1385.12,0.0001726,2]
[367587869,1750867850429,-394.42,0.0001726,2]
[367587871,1750867850438,-176.01627214,0.0001726,2]
[367587874,1750867850448,-460.0,0.0001726,2]
[367587875,1750867850458,-1070.18,0.0001726,2]
[367587878,1750867850468,-460.0,0.0001726,2]
[367587879,1750867850477,-465.93396944,0.0001726,2]
[367587882,1750867850487,-460.0,0.0001726,2]
[367587884,1750867850496,-421.65170464,0.0001726,2]
[367587886,1750867850505,-151.0,0.0001726,2]
[367587887,1750867850515,-460.0,0.0001726,2]
[367587889,1750867850525,-510.13718336,0.0001726,2]
[367587891,1750867850535,-151.0,0.0001726,2]
[367587893,1750867850544,-460.0,0.0001726,2]
[367587895,1750867850554,-460.0,0.0001726,2]
[367587897,1750867850564,-460.0,0.0001726,2]
[367587899,1750867850573,-326.7542593,0.0001726,2]
[367587901,1750867850583,-460.0,0.0001726,2]
[367587903,1750867850593,-460.0,0.0001726,2]
[367587905,1750867850603,-348.63561752,0.0001726,2]
[367587907,1750867850613,-1869.13,0.0001726,2]
[367587909,1750867850622,-488.96,0.0001726,2]
[367587911,1750867850631,-151.0,0.0001726,2]
[367587913,1750867850641,-709.89,0.0001726,2]
[367587915,1750867850650,-460.0,0.0001726,2]
[367587917,1750867850660,-460.0,0.0001726,2]
[367587919,1750867850670,-460.0,0.0001726,2]
[367587921,1750867850680,-313.13062073,0.0001726,2]
[367587923,1750867850690,-562.1841777,0.0001726,2]
[367587931,1750867850821,-460.0,0.0001726,2]
[367587933,1750867850831,-579.66,0.0001726,2]
[367587935,1750867850841,-1305.25,0.0001726,2]
[367587937,1750867850850,-151.0,0.0001726,2]
[367587939,1750867850859,-460.0,0.0001726,2]
[367587941,1750867850869,-460.0,0.0001726,2]
[367587943,1750867850878,-585.51,0.0001726,2]
[367587945,1750867850891,-489.57,0.0001726,2]
[367587947,1750867850901,-2329.61,0.0001726,2]
[367587949,1750867850911,-476.81915078,0.0001726,2]
[367587951,1750867850921,-536.1,0.0001726,2]
[367587953,1750867850931,-460.0,0.0001726,2]
[367587955,1750867850940,-460.0,0.0001726,2]
[367587957,1750867850950,-460.0,0.0001726,2]
[367587959,1750867850963,-460.0,0.0001726,2]
[367587961,1750867850972,-460.0,0.0001726,2]
[367587963,1750867850983,-4746.27,0.0001726,2]
[367587965,1750867850992,-460.0,0.0001726,2]
[367587967,1750867851002,-460.0,0.0001726,2]
[367587969,1750867851011,-1430.56,0.0001726,2]
[367587971,1750867851020,-523.7,0.0001726,2]
[367587973,1750867851030,-1185.87,0.0001726,2]
[367587975,1750867851039,-7129.38,0.0001726,2]
[367587977,1750867851049,-939.14,0.0001726,2]
[367587979,1750867851059,-460.0,0.0001726,2]
[367587981,1750867851068,-460.0,0.0001726,2]
[367587983,1750867851078,-1017.09,0.0001726,2]
[367587985,1750867851087,-460.0,0.0001726,2]
[367587987,1750867851097,-460.0,0.0001726,2]
[367587989,1750867851106,-648.22,0.0001726,2]
[367587991,1750867851116,-460.0,0.0001726,2]
[367587993,1750867851125,-460.0,0.0001726,2]
[367587995,1750867851135,-3445.34,0.0001726,2]
[367587997,1750867851144,-460.0,0.0001726,2]
[367587998,1750867851154,-762.19,0.0001726,2]
[367587999,1750867851164,-460.0,0.0001726,2]
[367588000,1750867851173,-491.82,0.0001726,2]
[367588001,1750867851183,-460.0,0.0001726,2]
[367588002,1750867851193,-460.0,0.0001726,2]
[367588003,1750867851203,-460.0,0.0001726,2]
[367588004,1750867851213,-8043.92,0.0001726,2]
[367588006,1750867851223,-460.0,0.0001726,2]
[367588008,1750867851233,-460.0,0.0001726,2]
[367588010,1750867851243,-5734.6,0.0001726,2]
[367588012,1750867851254,-460.0,0.0001726,2]
[367588014,1750867851263,-460.0,0.0001726,2]
[367588015,1750867851273,-460.0,0.0001726,2]
[367588016,1750867851282,-8605.38,0.0001726,2]
[367588017,1750867851292,-460.0,0.0001726,2]
[367588018,1750867851302,-151.0,0.0001726,2]
[367588019,1750867851312,-460.0,0.0001726,2]
[367588020,1750867851321,-2986.69,0.0001726,2]
[367588021,1750867851332,-694.56,0.0001726,2]
[367588022,1750867851342,-694.56,0.0001726,2]
[367588023,1750867851352,-1675.72,0.0001726,2]
[367588024,1750867851361,-1410.05,0.0001726,2]
[367588025,1750867851371,-1578.67,0.0001726,2]
[367588026,1750867851381,-460.0,0.0001726,2]
[367588027,1750867851391,-460.0,0.0001726,2]
[367588028,1750867851401,-460.0,0.0001726,2]
[367588029,1750867851410,-4187.9,0.0001726,2]
[367588030,1750867851420,-8661.17,0.0001726,2]
[367588031,1750867851429,-862.47,0.0001726,2]
[367588033,1750867851439,-460.0,0.0001726,2]
[367588035,1750867851449,-460.0,0.0001726,2]
[367588037,1750867851460,-460.0,0.0001726,2]
[367588039,1750867851470,-460.0,0.0001726,2]
[367588040,1750867851479,-563.8,0.0001726,2]
[367588041,1750867851489,-1771.15,0.0001726,2]
[367588042,1750867851500,-697.01,0.0001726,2]
[367588044,1750867851509,-908.2,0.0001726,2]
[367588046,1750867851520,-151.0,0.0001726,2]
[367588048,1750867851529,-460.0,0.0001726,2]
[367588049,1750867851541,-460.0,0.0001726,2]
[367588051,1750867851552,-460.0,0.0001726,2]
[367588052,1750867851561,-460.0,0.0001726,2]
[367588053,1750867851571,-4668.02,0.0001726,2]
[367588054,1750867851581,-460.0,0.0001726,2]
[367588055,1750867851590,-1912.17,0.0001726,2]
[367588056,1750867851600,-1756.49,0.0001726,2]
[367588057,1750867851610,-460.0,0.0001726,2]
[367588058,1750867851620,-610.58,0.0001726,2]
[367588059,1750867851630,-460.0,0.0001726,2]
[367588060,1750867851639,-460.0,0.0001726,2]
[367588061,1750867851649,-460.0,0.0001726,2]
[367588062,1750867851658,-460.0,0.0001726,2]
[367588063,1750867851668,-629.93,0.0001726,2]
[367588064,1750867851678,-460.0,0.0001726,2]
[367588065,1750867851687,-460.0,0.0001726,2]
[367588066,1750867851697,-1760.35,0.0001726,2]
[367588067,1750867851709,-460.0,0.0001726,2]
[367588068,1750867851719,-460.0,0.0001726,2]
[367588069,1750867851728,-1564.69,0.0001726,2]
[367588070,1750867851738,-1886.61,0.0001726,2]
[367588071,1750867851748,-594.63,0.0001726,2]
[367588072,1750867851758,-460.0,0.0001726,2]
[367588073,1750867851767,-460.0,0.0001726,2]
[367588074,1750867851777,-593.22,0.0001726,2]
[367588075,1750867851787,-151.0,0.0001726,2]
[367588076,1750867851796,-5417.69,0.0001726,2]
[367588077,1750867851806,-460.0,0.0001726,2]
[367588078,1750867851816,-151.0,0.0001726,2]
[367588079,1750867851825,-460.0,0.0001726,2]
[367588080,1750867851836,-561.17,0.0001726,2]
[367588081,1750867851846,-460.0,0.0001726,2]
[367588082,1750867851855,-501.6,0.0001726,2]
[367588083,1750867851865,-619.8,0.0001726,2]
[367588084,1750867851875,-460.0,0.0001726,2]
[367588085,1750867851885,-460.0,0.0001726,2]
[367588086,1750867851896,-590.0,0.0001726,2]
[367588087,1750867851906,-170.52,0.0001726,2]
[367588088,1750867851916,-460.0,0.0001726,2]
[367588089,1750867851925,-2506.56,0.0001726,2]
[367588090,1750867851935,-5374.08,0.0001726,2]
[367588091,1750867851945,-859.04,0.0001726,2]
[367588092,1750867851955,-460.0,0.0001726,2]
[367588093,1750867851965,-460.0,0.0001726,2]
[367588094,1750867851975,-460.0,0.0001726,2]
[367588095,1750867851984,-460.0,0.0001726,2]
[367588096,1750867851995,-839.14,0.0001726,2]
[367588097,1750867852004,-494.52,0.0001726,2]
[367588098,1750867852014,-736.19,0.0001726,2]
[367588099,1750867852023,-605.17,0.0001726,2]
[367588100,1750867852033,-401.26786117,0.0001726,2]
[367588101,1750867852042,-1527.49,0.0001726,2]
[367588102,1750867852053,-460.0,0.0001726,2]
[367588103,1750867852063,-472.76,0.0001726,2]
[367588104,1750867852072,-460.0,0.0001726,2]
[367588105,1750867852082,-516.41,0.0001726,2]
[367588106,1750867852091,-460.0,0.0001726,2]
[367588107,1750867852101,-377.48391494,0.0001726,2]
[367588108,1750867852111,-460.0,0.0001726,2]
[367588109,1750867852120,-460.0,0.0001726,2]
[367588110,1750867852130,-1612.98,0.0001726,2]
[367588111,1750867852139,-720.26,0.0001726,2]
[367588112,1750867852149,-7681.16278202,0.00017314,2]
[367588113,1750867852159,-1000.0,0.00017321,2]
[367588114,1750867852169,-1000.0,0.00017321,2]
[367588115,1750867852178,-507.41052168,0.00017321,2]
[367588116,1750867852188,-502.89649884,0.00017321,2]
[367588117,1750867852197,-1000.0,0.00017321,2]
[367588118,1750867852208,-209.00670734,0.00017321,2]
[367588119,1750867852218,-1000.0,0.00017321,2]
[367588120,1750867852228,-689.0,0.00017347,2]
[367588121,1750867852237,-500.0,0.00017436,2]
[367588122,1750867852247,-500.0,0.00017436,2]
[367588123,1750867852257,-377.86166272,0.00017436,2]
[367588124,1750867852267,-500.0,0.00017436,2]
[367588125,1750867852276,-500.0,0.00017436,2]
[367588126,1750867852286,-153.0,0.00017452,2]
[367588127,1750867852296,-153.0,0.00017452,2]
[367588128,1750867852396,-153.0,0.00017452,2]
[367588129,1750867852406,-153.0,0.00017452,2]
[367588130,1750867852416,-153.0,0.00017452,2]
[367588131,1750867852425,-153.0,0.00017452,2]
[367588132,1750867852435,-153.0,0.00017452,2]
[367588133,1750867852445,-153.0,0.00017452,2]
[367588134,1750867852456,-153.0,0.00017452,2]
[367588135,1750867852465,-153.0,0.00017452,2]
[367588136,1750867852475,-153.0,0.00017452,2]
[367588138,1750867852484,-153.0,0.00017452,2]
[367588140,1750867852494,-153.0,0.00017452,2]
[367588141,1750867852503,-153.0,0.00017452,2]
[367588142,1750867852513,-153.0,0.00017452,2]
[367588143,1750867852523,-153.0,0.00017452,2]
[367588144,1750867852532,-153.0,0.00017452,2]
[367588145,1750867852542,-166.2715739,0.00017452,2]
[367588146,1750867852552,-153.0,0.00017514,2]
[367588147,1750867852561,-153.0,0.00017514,2]
[367588148,1750867852570,-153.0,0.00017514,2]
[367588149,1750867852580,-7681.16278202,0.00017521,2]
[367588150,1750867852589,-460.0,0.00017534,2]
[367588151,1750867852598,-460.0,0.00017534,2]
[367588152,1750867852607,-570.25897205,0.00017534,2]
[367588153,1750867852616,-460.0,0.00017534,2]
[367588154,1750867852625,-479.63,0.00017534,2]
[367588155,1750867852635,-460.0,0.00017534,2]
[367588156,1750867852644,-531.11,0.00017534,2]
[367588157,1750867852653,-460.0,0.00017534,2]
[367588158,1750867852662,-581.7,0.00017534,2]
[367588159,1750867852671,-460.0,0.00017534,2]
[367588160,1750867852680,-460.0,0.00017534,2]
[367588161,1750867852690,-460.0,0.00017534,2]
[367588162,1750867852699,-549.26166299,0.00017534,2]
[367588163,1750867852709,-151.0,0.00017534,2]
[367588164,1750867852719,-151.0,0.00017534,2]
[367588165,1750867852729,-475.90325592,0.00017534,2]
[367588166,1750867852739,-460.0,0.00017534,2]
[367588167,1750867852750,-460.0,0.00017534,2]
[367588168,1750867852761,-151.0,0.00017534,2]
[367588169,1750867852771,-151.0,0.00017534,2]
[367588170,1750867852780,-460.0,0.00017534,2]
[367588171,1750867852791,-646.25,0.00017534,2]
[367588172,1750867852801,-460.0,0.00017534,2]
[367588173,1750867852811,-460.0,0.00017534,2]
[367588174,1750867852820,-460.0,0.00017534,2]